bitfinex-derivatives/quotes_SOLF0:USTF0_20240816
["timestamp","ask_amount","ask_price","bid_price","bid_amount"]
[1723816427985,51.58,139.2,139.07,51.58]
[1723816428404,3.593,139.13,139.07,55.1742]
[1723816428597,0.0459306,139.19,139.09,51.58]
[1723816428790,0.0459306,139.19,139.12,51.58]
[1723816429484,51.58,139.23,139.09,0.05207933]
[1723816429797,51.58,139.23,139.1,51.58]
[1723816429996,51.58,139.23,139.1,55.1733]
[1723816429997,3.592,139.16,139.1,55.1733]
[1723816430292,0.0468306,139.17,139.1,51.58]
[1723816430493,3.5932,139.12,139.07,51.58]
[1723816430699,0.0468306,139.17,139.07,51.58]
[1723816431196,0.0468306,139.17,139.03,3.57872055]
[1723816431398,0.0468306,139.17,139.09,51.58]
[1723816431601,0.0468306,139.17,139.12,0.0469307]
[1723816432091,3.5928,139.13,139.12,0.0469307]
[1723816432989,3.5928,139.13,139.02,52.9386]
[1723816433302,51.58,139.11,138.95,1.3557]
[1723816433494,51.58,139.11,138.97,1.3175]
[1723816433696,51.58,139.11,138.99,1.2716]
[1723816433996,3.61595911,139.14,139.03,51.58]
[1723816434195,10.88,139.15,138.99,1.2716]
[1723816434499,10.88,139.15,139.04,51.58]
[1723816434799,51.58,139.2,139.07,51.58]
[1723816435096,51.58,139.14,139.0,310.88]
[1723816435302,0.05072504,139.09,139.0,310.88]
[1723816435701,0.05072504,139.09,139.0,300.0]
[1723816435899,51.58,139.12,139.0,300.0]
[1723816436200,62.48,139.14,139.01,51.58]
[1723816436400,0.05494949,139.06,139.03,3.5952]
[1723816436727,10.9,139.14,139.05,51.58]
[1723816436895,51.58,139.17,139.06,3.5946]
[1723816437101,51.58,139.17,139.03,62.48]
[1723816438505,3.5936,139.1,139.09,0.04726434]
[1723816439203,3.5936,139.1,139.0,300.0]
[1723816439204,0.05001533,139.11,139.0,300.0]
[1723816439404,51.58,139.12,139.0,300.0]
[1723816439911,51.58,139.09,139.0,300.0]
[1723816440405,3.5959,139.01,139.0,300.0]
[1723816441009,0.05145254,139.06,139.0,300.0]
[1723816441502,1.0,139.11,139.04,51.58]
[1723816441709,1.0,139.11,139.06,51.58]
[1723816442204,1.0,139.11,139.07,3.5942]
[1723816442411,51.58,139.2,139.06,51.58]
[1723816442607,51.58,139.2,139.05,2.5912]
[1723816442608,51.58,139.22,139.08,51.58]
[1723816442800,51.58,139.22,139.07,10.9]
[1723816442801,51.58,139.22,139.11,51.58]
[1723816443015,51.58,139.2,139.05,2.5912]
[1723816443202,0.05048935,139.1,139.09,3.5938]
[1723816443395,3.5922,139.16,139.08,51.62553389]
[1723816443597,51.58,139.19,139.09,10.9]
[1723816443808,51.58,139.17,139.08,0.04553389]
[1723816444109,51.58,139.17,139.06,51.58]
[1723816444509,3.5680992,139.26,139.06,51.58]
[1723816444714,10.9,139.28,139.11,51.58]
[1723816444911,0.0478331,139.13,139.11,51.58]
[1723816445218,51.58,139.21,139.12,11.28]
[1723816445512,51.58,139.21,139.11,11.28]
[1723816445695,51.58,139.24,139.11,11.28]
[1723816445896,51.58,139.24,139.11,51.58]
[1723816446609,51.58,139.21,139.09,62.86]
[1723816446802,51.58,139.21,139.11,1.3132]
[1723816447201,11.28,139.21,139.05,2.5912]
[1723816447406,7.1772,139.3,139.09,51.58]
[1723816447407,67.65467302,139.28,139.09,51.58]
[1723816447611,0.05317363,139.19,139.16,0.05521348]
[1723816448532,0.05317363,139.19,139.16,1.39761348]
[1723816449009,51.58,139.24,139.16,1.3424]
[1723816449209,55.1702,139.24,139.16,1.3424]
[1723816449411,51.58,139.26,139.16,4.9342]
[1723816449603,1.0,139.27,139.16,1.3424]
[1723816449810,51.58,139.31,139.18,51.58]
[1723816450011,51.58,139.31,139.2,3.5908]
[1723816450209,51.58,139.26,139.16,1.3424]
[1723816450526,51.58,139.24,139.16,1.3424]
[1723816450711,0.04906321,139.19,139.07,11.74]
[1723816450906,3.5918,139.17,139.16,0.05341678]
[1723816451847,0.04906321,139.19,139.16,0.05341678]
[1723816452027,51.62906321,139.19,139.16,0.05341678]
[1723816452321,51.58,139.19,139.08,1.2618]
[1723816452518,51.58,139.19,139.09,3.5936]
[1723816452717,51.58,139.19,139.09,51.58]
[1723816452914,51.58,139.22,139.09,51.58]
[1723816453112,51.58,139.17,139.08,1.2618]
[1723816453315,3.5918,139.17,139.16,0.04744472]
[1723816453508,0.05311474,139.19,139.08,4.8558]
[1723816453715,0.05311474,139.19,139.08,1.2618]
[1723816453919,3.5928,139.14,139.08,1.2618]
[1723816454109,3.5928,139.14,139.08,4.8557]
[1723816454413,0.05311474,139.19,139.08,1.2618]
[1723816454718,51.58,139.16,139.08,1.2618]
[1723816454923,51.58,139.14,139.08,1.2618]
[1723816455218,51.58,139.14,139.06,1.3105]
[1723816455815,0.05353444,139.12,139.1,0.0535251]
[1723816457311,3.5933,139.11,139.1,0.0535251]
[1723816458121,0.05353444,139.12,139.1,0.0535251]
[1723816458811,3.64683444,139.12,139.1,0.0535251]
[1723816459015,0.05353444,139.12,139.1,0.0535251]
[1723816459214,51.58,139.22,139.1,51.6335251]
[1723816459416,51.58,139.22,139.12,3.593]
[1723816459615,51.58,139.22,139.11,1.2983]
[1723816459822,3.5915,139.19,139.11,1.2983]
[1723816460022,3.5915,139.19,139.14,3.5925]
[1723816460215,3.5915,139.19,139.12,1.2987]
[1723816460216,3.5911,139.2,139.12,1.2987]
[1723816460415,51.58,139.24,139.13,12.22]
[1723816460611,51.58,139.24,139.15,3.5921]
[1723816460822,51.58,139.24,139.13,12.22]
[1723816461023,0.04798563,139.18,139.15,0.05234993]
[1723816461225,3.5904,139.23,139.15,0.05234993]
[1723816461412,12.22,139.29,139.15,51.63234993]
[1723816461413,51.58,139.27,139.15,51.63234993]
[1723816461617,51.58,139.29,139.22,3.5904]
[1723816461812,3.5894,139.27,139.17,51.58]
[1723816462118,51.58,139.29,139.17,51.58]
[1723816462320,51.58,139.34,139.2,51.58]
[1723816462520,51.58,139.34,139.22,51.58]
[1723816462723,51.58,139.37,139.28,3.5889]
[1723816463035,51.58,139.34,139.24,3.62613034]
[1723816463327,51.58,139.32,139.23,1.3791]
[1723816463525,0.04790269,139.24,139.23,1.3791]
[1723816463722,51.58,139.34,139.23,5.02706741]
[1723816463927,51.58,139.37,139.26,0.04837696]
[1723816464522,51.58,139.34,139.26,0.04837696]
[1723816465022,51.58,139.4,139.25,51.58]
[1723816465023,51.58,139.37,139.25,51.58]
[1723816465225,63.8,139.42,139.29,51.58]
[1723816465426,51.58,139.42,139.29,51.58]
[1723816465628,3.5862,139.39,139.33,3.5876]
[1723816466022,51.58,139.42,139.3,11.8]
[1723816466334,3.5859,139.4,139.34,3.5873]
[1723816466627,51.58,139.42,139.31,1.313]
[1723816466628,0.05511515,139.37,139.31,1.313]
[1723816466829,0.05511515,139.37,139.32,51.58]
[1723816467128,15.38410803,139.49,139.31,1.313]
[1723816467129,63.38,139.49,139.36,51.58]
[1723816467321,3.5843,139.47,139.36,51.58]
[1723816467525,51.58,139.49,139.36,51.58]
[1723816467729,3.5846,139.45,139.39,3.586]
[1723816467931,51.58,139.49,139.36,51.58]
[1723816468120,51.58,139.51,139.39,51.58]
[1723816468323,51.58,139.51,139.4,11.8]
[1723816468531,51.58,139.51,139.41,3.61574847]
[1723816468731,0.0458949,139.44,139.41,3.66133855]
[1723816468924,0.0458949,139.44,139.41,4.91263855]
[1723816469123,0.0458949,139.44,139.41,1.29689008]
[1723816469327,51.58,139.49,139.41,1.2513]
[1723816469534,51.58,139.46,139.39,3.63762515]
[1723816469730,51.58,139.46,139.41,3.5855]
[1723816469938,51.58,139.49,139.41,3.5855]
[1723816470331,51.58,139.46,139.34,64.6313]
[1723816470529,51.58,139.44,139.34,13.0513]
[1723816470929,51.62979397,139.46,139.34,64.6313]
[1723816471132,51.58,139.46,139.38,0.0497996]
[1723816471531,3.5848,139.44,139.38,3.6360996]
[1723816471833,0.05391344,139.41,139.38,0.0497996]
[1723816472433,3.5863,139.39,139.34,13.0513]
[1723816472635,51.58,139.44,139.34,1.2513]
[1723816472832,51.58,139.47,139.34,1.2513]
[1723816473048,0.05110968,139.41,139.38,0.05160818]
[1723816473628,51.58,139.47,139.36,3.6459647]
[1723816474042,3.5846,139.45,139.39,3.5859]
[1723816474348,0.05329532,139.41,139.39,3.5859]
[1723816474531,0.05329532,139.41,139.4,3.5858]
[1723816475040,0.05329532,139.41,139.4,55.1658]
[1723816475249,3.5838,139.48,139.42,3.5853]
[1723816475638,3.5838,139.48,139.43,3.5851]
[1723816475831,11.78,139.54,139.43,51.57]
[1723816476130,28.68,139.59,139.46,51.57]
[1723816476331,51.57,139.49,139.37,11.78]
[1723816476729,3.5848,139.45,139.37,11.78]
[1723816476931,51.57,139.46,139.37,11.78]
[1723816477130,51.57,139.48,139.37,11.78]
[1723816477331,51.57,139.48,139.39,3.586]
[1723816477727,0.05269017,139.5,139.37,63.35]
[1723816477931,51.57,139.43,139.4,0.05489965]
[1723816478133,51.57,139.43,139.28,3.64299279]
[1723816478134,51.57,139.41,139.28,3.64299279]
[1723816478344,51.57,139.41,139.27,51.57]
[1723816478732,51.57,139.38,139.24,51.57]
[1723816479027,51.57,139.4,139.29,3.5885]
[1723816479257,51.57,139.34,139.21,3.60178652]
[1723816479436,51.57,139.34,139.24,3.5898]
[1723816479632,51.57,139.34,139.3,0.04985467]
[1723816480044,3.5882,139.31,139.3,0.04985467]
[1723816480334,51.57,139.32,139.2,1.2996]
[1723816480545,51.57,139.3,139.2,1.2996]
[1723816480736,0.04701986,139.33,139.2,1.2996]
[1723816480737,0.04701986,139.33,139.21,51.57]
[1723816481044,0.04701986,139.33,139.29,0.04984651]
[1723816481236,51.57,139.34,139.29,0.04984651]
[1723816481429,51.57,139.34,139.22,11.78]
[1723816481740,0.04722886,139.32,139.23,51.57]
[1723816481946,0.04722886,139.32,139.22,11.78]
[1723816482140,3.5899,139.25,139.22,11.78]
[1723816482435,51.57,139.32,139.22,11.78]
[1723816482933,51.57,139.32,139.2,1.2996]
[1723816483133,0.04812069,139.25,139.2,1.2996]
[1723816483336,0.04812069,139.25,139.22,0.05030751]
[1723816483943,51.57,139.34,139.22,0.05030751]
[1723816484234,51.57,139.36,139.23,51.57]
[1723816485233,51.57,139.36,139.24,3.5899]
[1723816485435,52.57,139.39,139.26,51.57]
[1723816485737,0.04981051,139.31,139.26,51.57]
[1723816485937,0.04981051,139.31,139.28,0.04646212]
[1723816486140,0.04981051,139.31,139.28,51.61646212]
[1723816486427,1.0,139.39,139.28,51.61646212]
[1723816486428,63.35,139.43,139.3,51.57]
[1723816486831,0.1515,139.48,139.33,51.57]
[1723816487238,0.1515,139.48,139.35,0.0462329]
[1723816487766,0.04581398,139.41,139.29,1.3207]
[1723816488049,0.04581398,139.41,139.25,51.57]
[1723816488050,51.57,139.37,139.25,51.57]
[1723816488239,51.57,139.39,139.25,51.57]
[1723816488544,3.5882,139.31,139.27,3.5891]
[1723816488837,51.57,139.39,139.31,0.04716331]
[1723816489042,0.05302312,139.33,139.31,0.04716331]
[1723816489339,11.78,139.42,139.31,3.59029529]
[1723816489533,51.57,139.46,139.33,51.57]
[1723816489737,51.57,139.46,139.35,51.57]
[1723816490037,11.78,139.49,139.35,51.57]
[1723816490038,51.7215,139.48,139.35,51.57]
[1723816490229,0.05147369,139.42,139.35,51.57]
[1723816490829,0.05147369,139.42,139.4,0.05489425]
[1723816491447,0.05147369,139.42,139.39,51.57]
[1723816491649,0.05147369,139.42,139.41,3.5856]
[1723816493138,11.78,139.55,139.4,56.52265213]
[1723816493338,11.78,139.55,139.45,51.57]
[1723816493540,3.5823,139.54,139.49,3.5835]
[1723816493745,3.5823,139.54,139.45,51.57]
[1723816493746,51.57,139.57,139.45,51.57]
[1723816493940,51.57,139.52,139.45,11.8]
[1723816494646,3.5838,139.49,139.47,0.05323632]
[1723816494850,0.04948857,139.5,139.47,0.05323632]
[1723816495045,3.63288857,139.5,139.47,0.05323632]
[1723816495245,0.04948857,139.5,139.47,0.05323632]
[1723816496135,3.63278857,139.5,139.47,0.05323632]
[1723816496442,0.04948857,139.5,139.47,0.05323632]
[1723816497244,3.63288857,139.5,139.47,0.05323632]
[1723816497545,0.04948857,139.5,139.47,0.05323632]
[1723816498548,3.63278857,139.5,139.47,0.05323632]
[1723816498748,0.04948857,139.5,139.47,0.05323632]
[1723816499544,3.63298857,139.5,139.47,0.05323632]
[1723816499751,0.04948857,139.5,139.47,0.05323632]
[1723816500050,0.04948857,139.5,139.47,51.68323632]
[1723816500253,0.04948857,139.5,139.49,3.5835]
[1723816500767,3.5838,139.48,139.47,0.05323632]
[1723816500957,0.04948857,139.5,139.41,3.59958095]
[1723816501252,0.04948857,139.5,139.42,51.63]
[1723816501453,51.63,139.55,139.44,51.63]
[1723816501753,51.63,139.57,139.47,3.5838]
[1723816501955,51.63,139.57,139.44,51.63]
[1723816502249,0.05274663,139.51,139.48,0.04701965]
[1723816502646,51.63,139.6,139.46,51.63]
[1723816502850,51.63,139.62,139.49,51.63]
[1723816503049,0.05380182,139.51,139.48,0.04550429]
[1723816503250,51.8316,139.65,139.52,51.63]
[1723816503652,51.8316,139.65,139.5,11.8]
[1723816503653,51.63,139.62,139.5,11.8]
[1723816503948,51.63,139.62,139.51,51.63]
[1723816504255,3.5811,139.59,139.51,51.63]
[1723816504456,51.8316,139.65,139.53,3.5823]
[1723816504652,51.8316,139.65,139.55,0.04829821]
[1723816504653,0.04718885,139.58,139.55,0.04829821]
[1723816504851,3.62848885,139.58,139.55,0.04829821]
[1723816505051,0.04718885,139.58,139.55,0.04829821]
[1723816505354,51.63,139.62,139.48,55.18372185]
[1723816505557,51.63,139.62,139.5,51.63]
[1723816505853,3.5814,139.58,139.5,51.63]
[1723816506055,3.5814,139.58,139.47,1.2563]
[1723816506056,3.5814,139.58,139.53,51.63]
[1723816506245,3.5814,139.58,139.55,0.05445199]
[1723816506246,0.0531428,139.58,139.55,0.05445199]
[1723816506551,0.0531428,139.58,139.55,51.68445199]
[1723816506749,0.0531428,139.58,139.55,0.05445199]
[1723816506944,3.5817,139.56,139.55,0.05445199]
[1723816507348,0.0531428,139.58,139.55,0.05445199]
[1723816507654,3.5817,139.56,139.55,0.05445199]
[1723816507853,0.0531428,139.58,139.55,0.05445199]
[1723816508051,3.5817,139.56,139.55,0.05445199]
[1723816508456,0.0531428,139.58,139.48,51.63]
[1723816508851,51.63,139.59,139.5,3.5832]
[1723816509047,3.5831,139.51,139.48,51.63]
[1723816509251,51.63,139.59,139.48,51.63]
[1723816509451,3.56969079,139.59,139.48,51.63]
[1723816509758,3.5823,139.54,139.48,51.63]
[1723816509956,0.05223412,139.55,139.52,0.05054387]
[1723816511557,0.2037,139.65,139.52,51.68054387]
[1723816511761,3.5805,139.61,139.56,51.63]
[1723816512059,51.63,139.69,139.56,55.23141262]
[1723816512253,3.5804,139.62,139.56,55.23141262]
[1723816512461,51.63,139.69,139.54,1.3637]
[1723816512462,51.63,139.66,139.54,1.3637]
[1723816512647,51.63,139.66,139.54,3.49468818]
[1723816512856,3.65405857,139.68,139.53,52.9937]
[1723816513176,3.65405857,139.68,139.6,51.63]
[1723816513371,0.04624268,139.61,139.6,55.23391957]
[1723816513551,3.65405857,139.68,139.6,55.23391957]
[1723816513770,0.2036,139.76,139.65,51.63]
[1723816513958,51.63,139.78,139.65,51.63]
[1723816514163,11.0128904,139.8,139.67,51.63]
[1723816514368,3.5785,139.69,139.67,51.63]
[1723816514559,11.0128904,139.8,139.66,3.5791]
[1723816514759,51.63,139.77,139.65,51.63]
[1723816515059,51.63,139.77,139.67,3.5787]
[1723816515254,3.8468904,139.8,139.68,51.63]
[1723816515255,0.04911084,139.69,139.68,51.63]
[1723816515563,0.04911084,139.69,139.68,55.2087]
[1723816515753,0.04911084,139.69,139.68,51.63]
[1723816515954,3.5782,139.7,139.65,51.63]
[1723816516162,51.63,139.77,139.63,52.9145]
[1723816516365,0.05423249,139.7,139.67,0.05151329]
[1723816516865,51.63,139.77,139.65,51.63]
[1723816517066,51.63,139.77,139.63,52.9145]
[1723816517258,0.05299288,139.7,139.67,0.04817317]
[1723816517766,51.8336,139.8,139.65,51.63]
[1723816518260,0.04947846,139.7,139.69,3.5782]
[1723816518465,55.29184578,139.84,139.68,51.63]
[1723816518670,51.8336,139.87,139.73,51.63]
[1723816518871,51.63,139.82,139.68,0.05166033]
[1723816519162,51.8336,139.87,139.67,51.63]
[1723816519163,0.05507882,139.77,139.67,51.63]
[1723816519396,0.05507882,139.77,139.74,0.05203663]
[1723816519576,3.5763,139.78,139.7,51.63]
[1723816519767,0.04901306,139.77,139.74,0.05407537]
[1723816520065,0.04901306,139.77,139.75,51.63]
[1723816520255,0.04901306,139.77,139.75,55.15589059]
[1723816520460,0.04901306,139.77,139.76,3.5766]
[1723816520863,40.02,139.94,139.75,51.63]
[1723816521068,40.02,139.94,139.74,0.05407537]
[1723816521069,55.24461924,139.92,139.8,55.2056]
[1723816521267,51.63,139.92,139.8,51.63]
[1723816521473,51.63,139.9,139.76,3.5766]
[1723816521675,51.63,139.9,139.74,3.59535036]
[1723816521875,51.63,139.9,139.79,51.63]
[1723816522189,3.5741,139.86,139.79,51.63]
[1723816522369,0.04734523,139.83,139.81,0.04800257]
[1723816522568,0.04734523,139.83,139.82,55.2051]
[1723816522765,63.01,139.94,139.82,55.2051]
[1723816522766,11.38,139.94,139.84,51.63]
[1723816522982,11.38,139.94,139.8,1.3824]
[1723816522983,51.63,139.89,139.8,1.3824]
[1723816523180,3.5739,139.87,139.8,1.3824]
[1723816523683,51.63,139.91,139.8,1.3824]
[1723816523866,51.63,139.94,139.81,51.63]
[1723816524065,51.63,139.94,139.82,0.05148939]
[1723816524269,0.04574393,139.85,139.82,0.05148939]
[1723816524471,0.04574393,139.85,139.83,51.63]
[1723816524671,51.63,139.96,139.83,51.63]
[1723816524878,11.6968,139.98,139.86,51.63]
[1723816525267,11.38,139.98,139.88,51.63]
[1723816525472,3.75763325,140.0,139.88,51.63]
[1723816525665,0.2029,140.0,139.85,64.3214]
[1723816525879,0.05421429,139.93,139.85,12.6914]
[1723816526177,0.05421429,139.93,139.86,51.63]
[1723816526371,0.05421429,139.93,139.88,51.63]
[1723816526716,0.05421429,139.93,139.91,0.05434539]
[1723816526890,3.5725,139.92,139.91,0.05434539]
[1723816528777,3.5725,139.92,139.91,0.00294539]
[1723816529073,51.63,139.92,139.8,53.0124]
[1723816529274,0.25251429,139.93,139.83,51.63]
[1723816529473,0.05421429,139.93,139.83,51.63]
[1723816529877,62.99,139.97,139.86,3.5739]
[1723816530075,62.99,139.97,139.8,53.0124]
[1723816530076,51.8283,140.0,139.88,51.63]
[1723816530276,51.63,139.92,139.78,1.3269]
[1723816530482,55.14803206,139.92,139.79,51.63]
[1723816530791,51.63,139.87,139.76,52.9987]
[1723816530986,51.63,139.92,139.78,51.63]
[1723816531198,1.0,139.91,139.76,1.3687]
[1723816531371,51.63,139.9,139.76,1.3687]
[1723816531783,51.63,139.9,139.84,0.04656902]
[1723816532079,3.5743,139.85,139.84,0.04656902]
[1723816532376,51.63,139.87,139.75,1.3494]
[1723816532585,51.63,139.87,139.75,52.9794]
[1723816532972,3.5753,139.82,139.77,3.5762]
[1723816533181,0.05437991,139.86,139.75,52.9794]
[1723816533576,0.05437991,139.86,139.75,56.5562]
[1723816533781,51.63,139.87,139.75,56.5562]
[1723816533986,51.63,139.87,139.72,51.63]
[1723816534173,51.63,139.81,139.79,0.04523069]
[1723816534574,7.10237507,139.8,139.79,0.04523069]
[1723816534774,51.63,139.81,139.67,3.9661]
[1723816534981,51.63,139.78,139.67,3.9661]
[1723816535178,51.63,139.78,139.67,2.6366]
[1723816535412,51.63,139.76,139.64,51.63]
[1723816535593,3.5785,139.69,139.64,51.63]
[1723816535784,3.5785,139.69,139.57,10.98]
[1723816535785,51.63,139.69,139.39,51.63]
[1723816536088,51.63,139.65,139.52,51.63]
[1723816536382,3.56933528,139.64,139.52,51.63]
[1723816536576,51.63,139.65,139.52,51.63]
[1723816536782,3.51425736,139.64,139.52,51.63]
[1723816536983,51.63,139.6,139.47,52.9595]
[1723816537289,55.24404139,139.62,139.49,51.63]
[1723816537479,51.63,139.64,139.51,51.63]
[1723816537788,51.63,139.62,139.47,52.9595]
[1723816537985,51.63,139.6,139.47,52.9595]
[1723816538191,51.63,139.6,139.42,1.3477]
[1723816538192,51.63,139.57,139.44,51.63]
[1723816538494,62.61,139.6,139.49,51.63]
[1723816538696,3.5828,139.52,139.49,51.63]
[1723816538882,62.61,139.6,139.49,51.63]
[1723816539088,62.61,139.6,139.42,1.3477]
[1723816539089,51.63,139.55,139.42,1.3477]
[1723816539387,0.05209163,139.52,139.49,0.05110778]
[1723816539784,3.5833,139.5,139.49,0.05110778]
[1723816539980,0.05209163,139.52,139.49,51.68110778]
[1723816540177,0.05209163,139.52,139.5,3.5833]
[1723816540388,51.63,139.59,139.47,51.63]
[1723816540584,51.63,139.57,139.44,62.61]
[1723816540894,51.63,139.54,139.42,51.63]
[1723816541092,51.63,139.52,139.4,1.3002]
[1723816541292,3.5849,139.44,139.4,1.3002]
[1723816541478,51.63,139.52,139.4,1.3002]
[1723816541685,55.30690458,139.52,139.5,0.05094378]
[1723816541989,3.5846,139.45,139.4,4.886]
[1723816542188,3.5846,139.45,139.4,1.3002]
[1723816542491,51.63,139.52,139.4,1.3002]
[1723816542793,62.61,139.54,139.42,51.63]
[1723816543379,10.98,139.58,139.44,51.63]
[1723816543592,10.98,139.58,139.47,51.63]
[1723816543806,51.63,139.59,139.47,51.63]
[1723816544009,51.63,139.59,139.48,3.5838]
[1723816544294,39.6,139.61,139.49,51.63]
[1723816544486,3.5819,139.56,139.5,3.5831]
[1723816544686,51.63,139.62,139.5,3.5831]
[1723816545182,3.5821,139.55,139.49,51.63]
[1723816545383,51.63,139.62,139.49,51.63]
[1723816545592,0.05353813,139.55,139.49,51.63]
[1723816545893,0.05353813,139.55,139.47,1.3365]
[1723816546097,3.5834,139.5,139.47,1.3365]
[1723816546289,0.05353813,139.55,139.47,1.3365]
[1723816546994,0.05353813,139.55,139.54,0.04513141]
[1723816547492,51.63,139.61,139.54,0.04513141]
[1723816547900,10.98,139.63,139.54,0.04513141]
[1723816548197,3.5814,139.58,139.53,3.5824]
[1723816548399,62.61,139.64,139.5,51.63]
[1723816548588,0.04777772,139.56,139.53,51.63]
[1723816548900,51.63,139.66,139.53,51.63]
[1723816549103,10.98,139.67,139.57,0.0476976]
[1723816549797,3.5806,139.61,139.56,3.5816]
[1723816550092,51.63,139.74,139.6,51.63]
[1723816550485,51.63,139.74,139.63,3.5798]
[1723816550686,51.63,139.74,139.62,51.63]
[1723816550997,51.63,139.77,139.65,51.63]
[1723816551590,0.04585156,139.68,139.65,51.63]
[1723816551786,0.2676,139.87,139.67,51.63]
[1723816551787,3.5771,139.75,139.67,51.63]
[1723816551996,80.27,139.82,139.69,51.63]
[1723816552292,51.63,139.82,139.69,51.63]
[1723816552504,62.23,139.84,139.72,51.63]
[1723816552692,51.63,139.84,139.72,51.63]
[1723816553496,51.63,140.02,139.78,51.63]
[1723816553795,51.63,140.02,139.66,51.63]
[1723816553796,0.04749862,139.79,139.75,51.63]
[1723816554208,0.04749862,139.79,139.75,55.2067]
[1723816554393,51.63,139.87,139.75,51.63]
[1723816555199,0.05347682,139.78,139.76,0.05179218]
[1723816555892,51.63,139.84,139.73,1.3744]
[1723816556100,3.5762,139.78,139.73,1.3744]
[1723816556319,0.05027014,139.78,139.76,0.04645976]
[1723816557198,51.63,139.91,139.77,51.63]
[1723816557593,51.63,139.89,139.76,10.6]
[1723816557791,3.5764,139.77,139.76,6.71883497]
[1723816558099,51.63,139.79,139.67,1.3808]
[1723816558300,51.63,139.84,139.71,51.63]
[1723816558499,0.05425362,139.78,139.75,0.05060902]
[1723816559193,52.63,139.88,139.74,51.63]
[1723816559405,3.61434244,139.87,139.74,51.63]
[1723816559706,0.05474107,139.78,139.75,0.04970008]
[1723816559898,51.63,139.86,139.75,0.04970008]
[1723816560096,51.63,139.86,139.74,51.63]
[1723816560297,0.04920537,139.78,139.72,51.63]
[1723816560497,0.04920537,139.78,139.68,1.2731]
[1723816560800,3.5756,139.8,139.79,0.05328847]
[1723816561194,1.0,139.85,139.74,55.207]
[1723816561393,1.0,139.85,139.74,65.807]
[1723816561594,1.0,139.85,139.74,62.23]
[1723816561794,0.04999236,139.81,139.78,0.05062672]
[1723816562294,62.23,139.9,139.8,3.5754]
[1723816562500,51.63,139.88,139.78,1.35782672]
[1723816562694,51.63,139.91,139.78,1.3072]
[1723816562897,51.63,139.91,139.79,51.63]
[1723816563298,10.6,139.96,139.79,51.63]
[1723816563299,51.63,139.93,139.79,51.63]
[1723816563604,3.5749,139.83,139.79,1.3755]
[1723816563899,0.0537495,139.86,139.84,0.05073242]
[1723816564201,3.5744,139.85,139.84,0.05073242]
[1723816564399,0.0537495,139.86,139.84,0.05073242]
[1723816564601,51.63,139.93,139.79,53.0055]
[1723816564803,51.63,139.91,139.79,53.0055]
[1723816565000,0.05311727,139.86,139.84,0.04721901]
[1723816565798,51.63,139.93,139.81,51.63]
[1723816566001,62.23,139.96,139.81,51.63]
[1723816566212,51.63,139.93,139.82,3.5749]
[1723816566425,51.63,139.93,139.79,53.0055]
[1723816566599,51.63,139.93,139.81,51.63]
[1723816566803,62.23,139.96,139.85,3.5741]
[1723816567008,0.0473875,139.86,139.84,0.04745079]